Cogmind - Beta 14 @@@ ROGUE MODE // 2024.11.04 @ 15:03:38 Player: Shimmyarah Result: Self-destructed Performance ------------- Evolutions (1) 500 Regions Visited (3) 600 Robots Destroyed (26) 130 Value Destroyed (673) 673 Prototype IDs (0) 0 Alien Tech Used (0) 0 Bonus (25) 25 TOTAL SCORE: 1928 Bonus ------- Follower Combat Kills 25 Cogmind --------- Core Integrity 222/400 Matter 132/300 Energy 100/100 System Corruption 0% Temperature Cool (43) Movement Core (100) Ox1 Location -9/Mines Parts ------- > --- POWER (1) -------- (None) > --- PROPULSION (2) --- (None) > --- UTILITY (3) ------ (None) > --- WEAPON (3) ------- Medium Laser Beam Rifle > --- INVENTORY (5) ---- Hover Unit Flight Unit Medium Laser Heavy Assault Rifle Improved Light Cannon Peak State ------------ > --- POWER ------------ Light Ion Engine > --- PROPULSION ------- Armored Wheel Armored Wheel > --- UTILITY ---------- Structural Scanner Improved Terrain Scanner > --- WEAPON ----------- Medium Laser Heavy Assault Rifle Improved Light Cannon > --- INVENTORY -------- Ion Engine Hover Unit Flight Unit Medium Laser Heavy Assault Rifle [Rating: 14] Favorites ----------- Power Light Ion Engine Engine Light Ion Engine Propulsion Light Treads Treads Light Treads Leg Aluminum Leg Wheel Armored Wheel Hover Unit Hover Unit Utility Improved Terrain Scanner Device Improved Terrain Scanner Processor Targeting Computer Weapon Medium Laser Energy Gun Medium Laser Ballistic Gun Heavy Assault Rifle Ballistic Cannon Improved Light Cannon Launcher Grenade Launcher Special Weapon Mining Laser Build | -11 -10 -9 -9 ------- Run | Yrd Mat Mat Min Slots Evolved 2 | . . 2 . Power . | . . . . Propulsion . | . . . . Utility 1 | . . 1 . Weapon 1 | . . 1 . Parts Attached 36 | 7 19 9 1 Power 4 | 1 2 1 . Engine 4 | 1 2 1 . Core . | . . . . Reactor . | . . . . Propulsion 7 | 2 3 2 . Treads 3 | 2 1 . . Leg 1 | . 1 . . Wheel 2 | . . 2 . Hover 1 | . 1 . . Flight . | . . . . Utility 7 | 2 5 . . Device 5 | 2 3 . . Storage . | . . . . Processor 2 | . 2 . . Hackware . | . . . . Protection . | . . . . Artifact . | . . . . Weapon 18 | 2 9 6 1 Energy Gun 7 | 1 3 3 . Energy Cannon . | . . . . Ballistic Gun 7 | 1 4 2 . Ballistic Cannon 1 | . . 1 . Launcher 2 | . 2 . . Special Weapon 1 | . . . 1 Impact Weapon . | . . . . Slashing Weapon . | . . . . Piercing Weapon . | . . . . Special Melee Weapon . | . . . . Unidentified Prototypes . | . . . . Parts Lost 16 | . 7 3 6 Power 3 | . 1 1 1 Propulsion 4 | . 2 . 2 Utility 3 | . 1 . 2 Weapon 6 | . 3 2 1 Highest Loss Streak 6 | . 6 2 6 To Critical Strikes . | . . . . Average Slot Usage (%) 88 | . 93 87 71 Engine 11 | . 13 10 9 Treads 9 | . 14 6 . Leg 6 | . 7 6 . Wheel 5 | . . 8 20 Hover 1 | . 3 . . Device 20 | . 20 22 12 Processor 2 | . 6 . . Energy Gun 16 | . 13 18 22 Ballistic Gun 5 | . 7 5 . Ballistic Cannon 2 | . . 4 1 Launcher 4 | . 6 3 . Peak Build Rating 14 | 9 9 14 14 Average Rating 9 | 5 8 11 10 On Entrance 8 | . 9 9 14 Naked Turns . | . . . . Heaviest Build 14 | 8 12 14 14 Greatest Support 40 | 40 40 24 24 Greatest Overweight (x) 1 | . 1 1 1 Average Overweight (x) . | . . . . Largest Inventory Capacity 5 | 5 5 5 5 Average Capacity 5 | 5 5 5 5 Most Carried 5 | 5 5 5 5 Average Carried 3 | 1 3 4 5 Final Capacity 5 | 5 5 5 5 Final Carried 5 | . 4 5 5 Class Distribution -------------------- 43% | Mutant 37% | Skirmisher 10% | Scavenger-Skirmisher 8% | Scavenger-Mutant Dominant Class ---------------- Mutant | -10/Materials Skirmisher | -9/Materials Skirmisher | -9/Mines Resources | -11 -10 -9 -9 ----------- Run | Yrd Mat Mat Min Matter Collected 562 | 285 123 154 . Remotely . | . . . . Salvage Created 764 | 119 361 200 84 Parts 47 | 7 22 16 2 Haulers Intercepted 1 | . 1 . . Recyclers Shooed . | . . . . Parts Field Recycled . | . . . . Retrieved Matter . | . . . . Parts Self-Destructed . | . . . . Prevented . | . . . . Kills | -11 -10 -9 -9 ------- Run | Yrd Mat Mat Min Combat Hostiles Destroyed 15 | . 6 7 2 Guns 12 | . 5 5 2 Cannons 1 | . . 1 . AOE 2 | . 1 1 . Classes Destroyed 11 | 2 6 3 . Worker 3 | . 3 . . Builder 1 | . 1 . . Tunneler 1 | 1 . . . Hauler 1 | . 1 . . Recycler 1 | 1 . . . Mechanic 1 | . 1 . . Operator 1 | . . 1 . Watcher 2 | . 2 . . Swarmer 3 | . . 3 . Grunt 10 | . 6 2 2 Sentry 2 | . . 2 . Best Kill Streak 4 | 2 4 3 2 Combat Bots Only 3 | . 3 3 2 Max Kills in Single Turn 3 | 1 3 2 1 Gunslinging 1 | . . 1 . Exploded 1 | . 1 1 . Melee . | . . . . Uniques/NPCs Destroyed . | . . . . Combat | -11 -10 -9 -9 -------- Run | Yrd Mat Mat Min Hostile Shots Fired 115 | . 73 25 17 Missed 22 | . 16 3 3 Damage Taken 1746 | . 938 434 374 Core 378 | . 200 39 139 Absorbed by Shields . | . . . . Core Remaining (%) 60 | 100 20 . . Volleys Fired 79 | 15 45 12 7 Largest 3 | 2 2 3 2 Hottest 145 | 60 90 145 106 Shots Fired 142 | 30 62 36 14 Gun 127 | 30 56 27 14 Cannon 7 | . . 7 . Launcher 8 | . 6 2 . Special . | . . . . Kinetic 42 | 15 14 13 . Thermal 73 | . 40 19 14 Explosive 8 | . 6 2 . Electromagnetic 19 | 15 2 2 . Robot Hit Streak 8 | 5 8 7 4 Robot Miss Streak 3 | 3 3 3 2 Penetration Max . | . . . . Secondary Targets 3 | . 1 2 . Max Gunslinging Chain 1 | . 1 1 . Shots Hit Robots 81 | 16 37 19 9 Core Hits 44 | 4 24 13 3 Critical Kills . | . . . . Critical Parts Destroyed . | . . . . Critical Strikes 2 | . 2 . . Burn 2 | . 2 . . Melee Attacks . | . . . . Impact . | . . . . Slashing . | . . . . Piercing . | . . . . Sneak Attacks . | . . . . Combat Hostiles . | . . . . Follow-up Attacks . | . . . . Damage Inflicted 1664 | 164 946 449 105 Guns 864 | 164 420 175 105 Cannons 65 | . . 65 . Explosions 735 | . 526 209 . Melee . | . . . . Ramming . | . . . . Kinetic 248 | 60 73 115 . Thermal 752 | . 522 125 105 Explosive 560 | . 351 209 . Electromagnetic 104 | 104 . . . Impact . | . . . . Slashing . | . . . . Piercing . | . . . . Highest Corruption . | . . . . Average Corruption . | . . . . Corruption Purged . | . . . . Corruption Blocked . | . . . . Overload Shots . | . . . . Overflow Damage 103 | . 49 54 . Projectiles . | . . . . Explosions 103 | . 49 54 . Melee . | . . . . Knockbacks . | . . . . Impact . | . . . . Kinetic . | . . . . Secondary . | . . . . Self-Inflicted Damage 320 | . 147 173 . Shots 6 | . 4 2 . Rammed . | . . . . Targets Rammed . | . . . . Kicked . | . . . . Crushed . | . . . . Highest Temperature 550 | 60 550 376 239 Average Temperature 160 | 24 233 114 117 Received Heat Transfer 654 | . 489 99 66 Effects 16 | . 14 1 1 Shutdowns 1 | . 1 . . Energy Bleed 4 | . 3 . 1 Interference 1 | . 1 . . Matter Decay 2 | . 2 . . Short Circuit 2 | . 2 . . Damage (minor) 3 | . 2 1 . Damage (major) 3 | . 3 . . Siege Activations . | . . . . Robots Corrupted . | . . . . Combat Hostiles . | . . . . Parts Fried . | . . . . Impact Corruptions . | . . . . Robots Melted . | . . . . Combat Hostiles . | . . . . Parts Melted 3 | . 1 1 1 Heat Transferred 1950 | . 1284 370 296 Parts Sabotaged . | . . . . Parts Stolen . | . . . . Parts Stripped . | . . . . Power Chain Reactions . | . . . . Alert | -11 -10 -9 -9 ------- Run | Yrd Mat Mat Min Peak Influence 254 | 10 247 254 104 Initial 60 | . 6 19 60 Average 99 | 5 101 126 64 Maximum Alert Level 1 | . 1 1 . Low Security (%) 83 | 100 85 75 100 Level 1 16 | . 14 24 . Level 2 . | . . . . Level 3 . | . . . . Level 4 . | . . . . Level 5 . | . . . . High Security . | . . . . Max Security . | . . . . Squads Dispatched 1 | . . 1 . Investigation . | . . . . Extermination . | . . . . Reinforcement 1 | . . 1 . Assault . | . . . . Garrison . | . . . . Intercept . | . . . . Searches Triggered . | . . . . Construction Impeded . | . . . . Haulers Reinforced . | . . . . Active Scanning Responses . | . . . . Cargo Convoy Interrupts . | . . . . Stealth | -11 -10 -9 -9 --------- Run | Yrd Mat Mat Min Distress Signals 4 | . 1 3 . Communications Jammed . | . . . . Distress Signals . | . . . . Times Spotted 27 | . 11 11 5 Peak Tracking Total 5 | . 5 4 3 Tactical Retreats . | . . . . Traps | -11 -10 -9 -9 ------- Run | Yrd Mat Mat Min Traps Triggered . | . . . . Indirectly . | . . . . Trap Hack Attempts . | . . . . Triggered . | . . . . Disarmed . | . . . . Reprogrammed . | . . . . Reused . | . . . . Traps Extracted . | . . . . Installed . | . . . . Triggered . | . . . . Machines | -11 -10 -9 -9 ---------- Run | Yrd Mat Mat Min Machines Disabled 9 | . 3 6 . Max in Single Turn 3 | . 3 2 . Machines Repaired . | . . . . Machines Dismantled . | . . . . Machines Sabotaged . | . . . . Overloaded Fab Kills . | . . . . Hacking | -11 -10 -9 -9 --------- Run | Yrd Mat Mat Min Machines Accessed 1 | . 1 . . Terminals 1 | . 1 . . Fabricators . | . . . . Repair Stations . | . . . . Recycling Units . | . . . . Scanalyzers . | . . . . Garrison Access . | . . . . Total Hacks 2 | . 2 . . Successful . | . . . . Failed 2 | . 2 . . Catastrophic 1 | . 1 . . Database Lockouts . | . . . . Manual . | . . . . Terminals 2 | . 2 . . Fabricators . | . . . . Repair Stations . | . . . . Recycling Units . | . . . . Scanalyzers . | . . . . Garrison Access . | . . . . Terminal Hacks . | . . . . Fabricator Hacks . | . . . . Repair Station Hacks . | . . . . Recycling Unit Hacks . | . . . . Scanalyzer . | . . . . Garrison Access Hacks . | . . . . Unauthorized Hacks . | . . . . Terminals . | . . . . Fabricators . | . . . . Repair Stations . | . . . . Recycling Units . | . . . . Scanalyzers . | . . . . Garrison Access . | . . . . Data Cores Recovered . | . . . . Used . | . . . . Hacking Detections . | . . . . Full Trace Events . | . . . . Feedback Events . | . . . . Feedback Blocked . | . . . . Robot Schematics Acquired . | . . . . Robots Built . | . . . . Authchips . | . . . . Time . | . . . . Total Robot Build Rating . | . . . . Part Schematics Acquired . | . . . . Parts Built . | . . . . Authchips . | . . . . Time . | . . . . Total Part Build Rating . | . . . . Parts Repaired . | . . . . Time . | . . . . Parts Recycled . | . . . . Recycled Matter . | . . . . Retrieved Matter . | . . . . Retrieved Components . | . . . . Parts Scanalyzed . | . . . . Part Schematics Acquired . | . . . . Parts Damaged . | . . . . Bothacking | -11 -10 -9 -9 ------------ Run | Yrd Mat Mat Min Used RIF Installer . | . . . . Robots Hacked . | . . . . Non-combat . | . . . . Combat . | . . . . Robot Hacks Applied . | . . . . Relay Couplers Released . | . . . . Fabnet Peak Effective % . | . . . . Robots Rewired . | . . . . Allies Hacked . | . . . . Hacks Repelled . | . . . . Allies | -11 -10 -9 -9 -------- Run | Yrd Mat Mat Min Total Allies 1 | . . . 1 Largest Group 1 | . . . 1 Highest-Rated Group 31 | . . . 31 Highest-Rated Ally 31 | . . . 31 Total Orders . | . . . . Ally Attacks 10 | . . . 10 Total Damage 148 | . . . 148 Kills 1 | . . . 1 Allies Corrupted . | . . . . Allies Melted . | . . . . Intel | -11 -10 -9 -9 ------- Run | Yrd Mat Mat Min Robot Analysis Total . | . . . . Derelict Logs Recovered 1 | . . . 1 Drone Launches . | . . . . Drone Recoveries . | . . . . Exploration | -11 -10 -9 -9 ------------- Run | Yrd Mat Mat Min Turns Passed 1186 | 139 433 555 59 Spaces Moved 692 | 59 195 400 38 Core 24 | 12 9 . 3 Treads 365 | 47 122 196 . Legs 1 | . 1 . . Wheels 239 | . . 204 35 Hover 63 | . 63 . . Flight . | . . . . Fastest Speed 50 | 50 100 90 90 Average Speed 130 | 137 147 124 90 Slowest Speed 160 | 160 160 160 100 Overloaded Moves . | . . . . Propulsion Burnouts . | . . . . Robots Hopped . | . . . . Cave-ins Triggered . | . . . . Exploration Rate (%) 20 | 4 41 29 9 Regions Visited 3 Branch Regions 1 Pre-discovered Areas 1 | . . . 1 Known Exits Taken . | . . . . Unknown Exits Taken 3 | 1 1 1 . Scrap Searched . | . . . . Spaces Dug . | . . . . Terrain Destroyed 118 | . 49 69 . Melee . | . . . . Projectile . | . . . . AOE 118 | . 49 69 . Terrain Rammed . | . . . . Walls Destroyed . | . . . . Machines Disabled . | . . . . Actions | -11 -10 -9 -9 --------- Run | Yrd Mat Mat Min Total 845 | 91 276 430 48 Wait . | . . . . Move 689 | 58 194 399 38 Hop . | . . . . Pick Up 30 | 9 14 6 1 Fast Attach 3 | . 1 2 . Attach 21 | 7 10 4 . Detach . | . . . . Swap 12 | . 8 3 1 Drop 11 | 2 4 4 1 Fire 79 | 15 45 12 7 Melee . | . . . . Ram . | . . . . Kick . | . . . . Crush . | . . . . Escape Stasis . | . . . . Rewire . | . . . . Trap . | . . . . Miscellaneous . | . . . . Route ------- -11/Scrapyard -10/Materials -9/Materials -9/Mines History --------- Turn | Location | Event 28 | -11/Scrapyard | Discovered new exit (range 14) 140 | -11/Scrapyard | Entered Materials 314 | -10/Materials | Core integrity fell below 50% 316 | -10/Materials | Build established: Mutant 358 | -10/Materials | Lost 6 parts (1p2n1u2w) 547 | -10/Materials | Discovered new exit (range 12) 573 | -10/Materials | Entered another Materials area 573 | -9/Materials | Evolved 2 slots: Utility x1, Weapon x1 1095 | -9/Materials | Discovered new exit (range 7) 1128 | -9/Materials | Entered Mines 1131 | -9/Mines | Received a Mining Laser from a helpful Derelict 1143 | -9/Mines | Learned location of Zion (-7) 1148 | -9/Mines | Assembled infested the area 1187 | -9/Mines | Self-destructed Last Messages --------------- 01136_ AR-SYT(g): "Mining lasers are a lot more useful than you might think..." 01143_ Acquired derelict log, extracted data. World map updated: -7/Zion. 01148_ ALERT: Infestation in the mines, dispatching Demolisher response squad. 01156_ Imp. Terrain Scanner destroyed. 01164_ G-34 Mercenary destroyed. 01164_ Structural Scanner destroyed. 01165_ G-34 Mercenary destroyed. 01169_ Mining Laser destroyed. 01174_ Aluminum Leg melted. 01174_ G-47 Trooper destroyed. 01175_ D-53 Grenadier unfolds itself. 01176_ Overheating: Energy bleed (-29). 01178_ AR-SYT(g) destroyed. 01178_ Lgt. Ion Engine destroyed. 01178_ Arm. Wheel destroyed. 01183_ The unstable cave ceiling collapses. 01184_ Arm. Wheel destroyed. Map ----- +----------------------------------------------------+ | | | | | | | ????????????????????????????????????????????? | | ????????????????????????????????????????????? | | ????????????????????????????????????????????? | | ????????????????????????????????????????????? | | ????????????????????????????????????????????? | | ????????????????????????????????????????????? | | ????????????????????????????????????????????? | | ????????????????????????????????????????????? | | ??????????????????????????????#?????????????? | | ????????????????????????????? #?????????????? | | ????????????#???????????????? ?????????????? | | ????????????????????????????? ????????????? | | ????????????????????????????? ?????? ?????? | | ???????#????? ??????????????# ??? ????? | | ???????????????????????????? ? ?????? | | ???????????????????????????? """" ?????? | | ?????????????????#??????#??? """" #??????? | | ????????????????????#????### """" #???????? | | ?????#???????????######## # ?????????? | | ????????????????## ## #???#???????? | | ???????????????### ##??????????? | | ???????????????### # ##??????????? | | ?????#?????????## @ ###?????????? | | ???????????????## ##?????????? | | ???????????????## = dd "?????? | | ?????#?????????## # " ???? | | ??????#????????#### #### ###### ??? | | ????#???????????#######?### % #######???? | | ?????????????????????????### ! ##????????? | | ???????????????#????????????=%%= ##????????? | | ???????????????????????????# =* ##????????? | | ???????????????????????????## ###????????? | | ???????????????????????#???## ###????????? | | ????????????????????????????? #?????????? | | ???????????????????????????? ?????????? | | ????????????????????????????? ?????????? | | ????????????????? ???????? ??? ????????????? | | ????????????????????????????????????????????? | | ?????????????????????????#??????????????????? | | ????????????????????????????????????????????? | | ????????????????????????????????????????????? | | ????????????????????????????????????????????? | | ????????????????????????????????????????????? | | ????????????????????????????????????????????? | | ????????????????????????????????????????????? | | ????????????????????????????????????????????? | | ????????????????????????????????????????????? | +----------------------------------------------------+ Best States ------------- Heat Dissipation 28 Energy Generation 10 Energy Capacity 250 Matter Stores 300 Matter Capacity 300 Sight Range 16 Terrain Scan Range 16 Terrain Scan Density 10 Evasion (%) 50 Targeting Accuracy 10 Recoil Reduction 2 Item Schematics ----------------- None Robot Schematics ------------------ None Fabricated ------------ Nothing Alien Tech Used ----------------- None Achievements -------------- None Challenges ------------ None Game ------ Seed StormSurveybotReactor Manual? 0 Play Time 00:15:03 Cumulative 6.9 hours Start 2024.11.04 @ 14:49:43 End 2024.11.04 @ 15:03:38 Sessions 1 Manual Loads 0 Difficulty Rogue Special Mode None Game No. 15 Rogue 15 Adventurer 0 Explorer 0 Win Type - Total 0 Types 0/0/0/0/0/0/0/0/0 Lore% 6 Gallery% 9 Achievement% 7 Wizard Run 0 Options --------- Layout 2 ASCII 0 Keyboard 0 Movement Arrows Keybinds 0 Fullscreen 1 Font 24/Tallcaps Map View 50x49 Zoom Use 13% Tactical HUD 1 Map Filters NONE Filters NONE Steam 1 RUN: 286e1a18-38a2-41b4-befc-adb9215dc7eb